fUSD/lending_fUSD_20240409
["ID","MTS","AMOUNT","RATE_DAILY","PERIOD"]
[322025766,1712695833456,-2528.95,0.00019998,2]
[322025767,1712695833465,-500.0,0.00019998,2]
[322025768,1712695833474,-500.0,0.00019998,2]
[322025769,1712695833483,-746.05,0.00019998,2]
[322025770,1712695833492,-613.41,0.00019999,2]
[322025771,1712695833502,-500.0,0.00019999,2]
[322025772,1712695833511,-684.32,0.00019999,2]
[322025773,1712695833521,-2433.52,0.00019999,2]
[322025774,1712695833529,-500.0,0.00019999,2]
[322025775,1712695833538,-2027.77,0.00019999,2]
[322025776,1712695833548,-500.0,0.00019999,2]
[322025777,1712695833557,-500.0,0.00020054,2]
[322025778,1712695833567,-426.11,0.00020054,2]
[322025779,1712695833576,-1458.78,0.00020054,2]
[322025780,1712695833585,-373.93014229,0.00020054,2]
[322025781,1712695833594,-500.0,0.00020054,2]
[322025782,1712695833603,-635.39,0.00020054,2]
[322025783,1712695833613,-500.0,0.00020054,2]
[322025784,1712695833622,-500.0,0.00020054,2]
[322025785,1712695833631,-500.0,0.00020054,2]
[322025786,1712695833640,-500.0,0.00020054,2]
[322025787,1712695833649,-500.0,0.00020054,2]
[322025788,1712695833658,-539.48,0.00020054,2]
[322025789,1712695833667,-500.0,0.00020054,2]
[322025790,1712695833676,-704.24,0.00020054,2]
[322025791,1712695833685,-3092.81,0.00020054,2]
[322025792,1712695833695,-500.0,0.00020054,2]
[322025793,1712695833704,-500.0,0.00020054,2]
[322025794,1712695833714,-500.0,0.00020054,2]
[322025795,1712695833724,-500.0,0.00020055,2]
[322025796,1712695833733,-500.0,0.00020055,2]
[322025797,1712695833742,-500.0,0.00020055,2]
[322025798,1712695833752,-500.0,0.00020055,2]
[322025799,1712695833761,-500.0,0.00020055,2]
[322025800,1712695833770,-500.0,0.00020055,2]
[322025801,1712695833780,-500.0,0.00020055,2]
[322025802,1712695833789,-500.0,0.00020055,2]
[322025803,1712695833798,-500.0,0.00020055,2]
[322025804,1712695833808,-500.0,0.00020055,2]
[322025805,1712695833818,-500.0,0.00020055,2]
[322025806,1712695833827,-500.0,0.00020055,2]
[322025807,1712695833836,-976.18,0.00020055,2]
[322025808,1712695833845,-500.0,0.00020055,2]
[322025809,1712695833854,-500.0,0.00020055,2]
[322025810,1712695833863,-500.0,0.00020055,2]
[322025811,1712695833872,-500.0,0.00020055,2]
[322025812,1712695833882,-500.0,0.00020055,2]
[322025813,1712695833891,-705.31,0.00020055,2]
[322025814,1712695833900,-500.0,0.00020055,2]
[322025815,1712695833910,-626.04,0.00020055,2]
[322025816,1712695833919,-584.0,0.00020055,2]
[322025817,1712695833928,-500.0,0.00020055,2]
[322025818,1712695833938,-467.84,0.00020055,2]
[322025819,1712695833946,-500.0,0.00020055,2]
[322025820,1712695833956,-500.0,0.00020055,2]
[322025821,1712695833965,-500.0,0.00020055,2]
[322025822,1712695833974,-254.57220545,0.00020209,2]
[322025823,1712695833983,-11236.61976296,0.00020221,2]
[322025824,1712695833992,-500.0,0.0002023,2]
[322025825,1712695834001,-584.06215819,0.0002023,2]
[322025826,1712695834011,-500.0,0.0002023,2]
[322025827,1712695834021,-500.0,0.0002023,2]
[322025828,1712695834029,-500.0,0.0002023,2]
[322025829,1712695834039,-500.0,0.0002023,2]
[322025830,1712695834050,-500.0,0.0002023,2]
[322025831,1712695834062,-1425.56,0.0002023,2]
[322025832,1712695834072,-500.0,0.0002023,2]
[322025833,1712695834081,-599.82,0.0002023,2]
[322025834,1712695834090,-500.0,0.0002023,2]
[322025835,1712695834100,-500.0,0.0002023,2]
[322025836,1712695834111,-192.61,0.0002023,2]
[322025837,1712695834120,-890.45,0.0002023,2]
[322025838,1712695834129,-500.0,0.0002023,2]
[322025839,1712695834138,-500.0,0.0002023,2]
[322025840,1712695834148,-500.0,0.0002023,2]
[322025841,1712695834157,-500.0,0.0002023,2]
[322025842,1712695834167,-1296.44,0.0002023,2]
[322025843,1712695834177,-500.0,0.0002023,2]
[322025844,1712695834186,-500.0,0.0002023,2]
[322025845,1712695834196,-500.0,0.00020272,2]
[322025846,1712695834205,-500.0,0.00020272,2]
[322025847,1712695834215,-1061.96,0.00020272,2]
[322025848,1712695834224,-2528.95,0.00020272,2]
[322025849,1712695834233,-500.0,0.00020272,2]
[322025850,1712695834243,-500.0,0.00020272,2]
[322025851,1712695834252,-746.05,0.00020272,2]
[322025852,1712695834262,-613.41,0.00020273,2]
[322025853,1712695834271,-489.12486367,0.00020273,2]
[322025854,1712695834280,-684.32,0.00020273,2]
[322025855,1712695834290,-2117.75956265,0.00020273,2]
[322025856,1712695834520,-315.76043735,0.00020273,2]
[322025857,1712695834529,-500.0,0.00020273,2]
[322025858,1712695834539,-2027.77,0.00020273,2]
[322025859,1712695834549,-500.0,0.00020273,2]
[322025860,1712695834559,-500.0,0.00020328,2]
[322025861,1712695834569,-1458.78,0.00020328,2]
[322025862,1712695834578,-500.0,0.00020328,2]
[322025863,1712695834587,-635.39,0.00020328,2]
[322025864,1712695834597,-500.0,0.00020328,2]
[322025865,1712695834606,-500.0,0.00020328,2]
[322025866,1712695834616,-500.0,0.00020328,2]
[322025867,1712695834626,-188.23139396,0.00020328,2]
[322025868,1712695834636,-500.0,0.00020328,2]
[322025869,1712695834645,-539.48,0.00020328,2]
[322025870,1712695834655,-500.0,0.00020328,2]
[322025871,1712695834664,-704.24,0.00020328,2]
[322025872,1712695834673,-3092.81,0.00020328,2]
[322025873,1712695834683,-500.0,0.00020328,2]
[322025874,1712695834693,-507.21397173,0.00020328,2]
[322025875,1712695834702,-500.0,0.00020328,2]
[322025876,1712695834712,-281.29,0.00020329,2]
[322025877,1712695834722,-500.0,0.00020329,2]
[322025878,1712695834732,-500.0,0.00020329,2]
[322025879,1712695834742,-500.0,0.00020329,2]
[322025880,1712695834751,-500.0,0.00020329,2]
[322025881,1712695834761,-500.0,0.00020329,2]
[322025882,1712695834770,-500.0,0.00020329,2]
[322025883,1712695834780,-500.0,0.00020329,2]
[322025884,1712695834789,-500.0,0.00020329,2]
[322025885,1712695834798,-500.0,0.00020329,2]
[322025886,1712695834808,-500.0,0.00020329,2]
[322025887,1712695834818,-500.0,0.00020329,2]
[322025888,1712695834827,-976.18,0.00020329,2]
[322025889,1712695834837,-500.0,0.00020329,2]
[322025890,1712695834846,-432.62935975,0.00020329,2]
[322025891,1712695834855,-500.0,0.00020329,2]
[322025892,1712695834864,-500.0,0.00020329,2]
[322025893,1712695834873,-500.0,0.00020329,2]
[322025894,1712695834883,-705.31,0.00020329,2]
[322025895,1712695834892,-500.0,0.00020329,2]
[322025896,1712695834901,-626.04,0.00020329,2]
[322025897,1712695834910,-584.0,0.00020329,2]
[322025898,1712695834919,-500.0,0.00020329,2]
[322025899,1712695834928,-500.0,0.00020329,2]
[322025900,1712695834937,-500.0,0.00020329,2]
[322025901,1712695834947,-500.0,0.00020329,2]
[322025902,1712695834956,-254.57220545,0.00020463,2]
[322025903,1712695834966,-150.0,0.000205,2]
[322025904,1712695834975,-334.07,0.00020504,2]
[322025905,1712695834984,-500.0,0.00020504,2]
[322025906,1712695834993,-467.06248039,0.00020504,2]
[322025907,1712695835002,-500.0,0.00020504,2]
[322025908,1712695835012,-500.0,0.00020504,2]
[322025909,1712695835021,-545.26875094,0.00020504,2]
[322025910,1712695835031,-1425.56,0.00020504,2]
[322025911,1712695835041,-500.0,0.00020504,2]
[322025912,1712695835051,-599.82,0.00020504,2]
[322025913,1712695835065,-500.0,0.00020504,2]
[322025914,1712695835074,-500.0,0.00020504,2]
[322025915,1712695835084,-890.45,0.00020504,2]
[322025916,1712695835095,-500.0,0.00020504,2]
[322025917,1712695835105,-500.0,0.00020504,2]
[322025918,1712695835114,-500.0,0.00020504,2]
[322025919,1712695835124,-500.0,0.00020504,2]
[322025920,1712695835134,-1296.44,0.00020504,2]
[322025921,1712695835143,-500.0,0.00020504,2]
[322025922,1712695835153,-414.53054724,0.00020504,2]
[322025923,1712695835163,-978.0,0.0002052,2]
[322025924,1712695835173,-9625.71219186,0.00020531,2]
[322025925,1712695835191,-1610.9075711,0.00020531,2]
[322025926,1712695835201,-500.0,0.00020546,2]
[322025927,1712695835211,-500.0,0.00020546,2]
[322025928,1712695835220,-361.8620225,0.00020546,2]
[322025929,1712695835251,-700.0979775,0.00020546,2]
[322025930,1712695835261,-2528.95,0.00020546,2]
[322025931,1712695835271,-500.0,0.00020546,2]
[322025932,1712695835280,-500.0,0.00020546,2]
[322025933,1712695835290,-746.05,0.00020546,2]
[322025934,1712695835300,-533.0,0.00020547,2]
[322025935,1712695835310,-613.41,0.00020547,2]
[322025936,1712695835319,-684.32,0.00020547,2]
[322025937,1712695835328,-2433.52,0.00020547,2]
[322025938,1712695835338,-500.0,0.00020547,2]
[322025939,1712695835347,-2027.77,0.00020547,2]
[322025940,1712695835357,-500.0,0.00020547,2]
[322025941,1712695835366,-2172.14456208,0.00020589,2]
[322025946,1712695837486,-233.39577978,0.00019,2]
[322025947,1712695837496,-377.27925793,0.00020447,2]
[322025948,1712695837506,-2075.17079553,0.00020589,2]
[322025949,1712695837515,-404.96651986,0.00020602,2]
[322025951,1712695838096,-132.72348014,0.00020602,2]
[322025952,1712695838106,-1458.78,0.00020602,2]
[322025953,1712695838116,-500.0,0.00020602,2]
[322025954,1712695838127,-635.39,0.00020602,2]
[322025955,1712695838137,-500.0,0.00020602,2]
[322025956,1712695838147,-500.0,0.00020602,2]
[322025957,1712695838157,-500.0,0.00020602,2]
[322025958,1712695838167,-500.0,0.00020602,2]
[322025959,1712695838176,-539.48,0.00020602,2]
[322025960,1712695838186,-500.0,0.00020602,2]
[322025961,1712695838196,-704.24,0.00020602,2]
[322025962,1712695838205,-3092.81,0.00020602,2]
[322025963,1712695838215,-500.0,0.00020602,2]
[322025964,1712695838225,-346.96,0.00020602,2]
[322025965,1712695838235,-500.0,0.00020603,2]
[322025966,1712695838244,-223.8,0.00020603,2]
[322025967,1712695838254,-370.74,0.00020603,2]
[322025968,1712695838264,-500.0,0.00020603,2]
[322025969,1712695838273,-381.91,0.00020603,2]
[322025970,1712695838283,-500.0,0.00020603,2]
[322025971,1712695838292,-500.0,0.00020603,2]
[322025972,1712695838302,-500.0,0.00020603,2]
[322025973,1712695838311,-500.0,0.00020603,2]
[322025974,1712695838321,-500.0,0.00020603,2]
[322025975,1712695838330,-500.0,0.00020603,2]
[322025976,1712695838340,-976.18,0.00020603,2]
[322025977,1712695838349,-500.0,0.00020603,2]
[322025978,1712695838358,-500.0,0.00020603,2]
[322025979,1712695838368,-500.0,0.00020603,2]
[322025980,1712695838377,-500.0,0.00020603,2]
[322025981,1712695838386,-705.31,0.00020603,2]
[322025982,1712695838395,-500.0,0.00020603,2]
[322025983,1712695838405,-626.04,0.00020603,2]
[322025984,1712695838414,-584.0,0.00020603,2]
[322025985,1712695838424,-500.0,0.00020603,2]
[322025986,1712695838632,-500.0,0.00020603,2]
[322025987,1712695838643,-288.81396036,0.00020603,2]
[322025988,1712695838653,-549.50946296,0.00020603,2]
[322025989,1712695838662,-267.25,0.00020697,2]
[322025990,1712695838677,-2351.80651277,0.00020699,2]
[322025991,1712695838727,-1000.0,0.000207,2]
[322025992,1712695838737,-296.19428827,0.000207,2]
[322025993,1712695838747,-296.19428827,0.000207,2]
[322025994,1712695838756,-296.19428827,0.000207,2]
[322025995,1712695838765,-296.19428827,0.000207,2]
[322025996,1712695838776,-296.19428827,0.000207,2]
[322025997,1712695838785,-296.19428827,0.000207,2]
[322025998,1712695838795,-296.19428827,0.000207,2]
[322025999,1712695838805,-296.19428827,0.000207,2]
[322026000,1712695838814,-296.19428827,0.000207,2]
[322026001,1712695838825,-296.19428827,0.000207,2]
[322026002,1712695838836,-296.19428827,0.000207,2]
[322026003,1712695838846,-296.19428827,0.000207,2]
[322026004,1712695838856,-296.19428827,0.000207,2]
[322026005,1712695838867,-296.19428827,0.000207,2]
[322026006,1712695838877,-296.19428827,0.000207,2]
[322026007,1712695838887,-296.19428827,0.000207,2]
[322026008,1712695838897,-296.19428827,0.000207,2]
[322026009,1712695838908,-296.19428827,0.000207,2]
[322026010,1712695838919,-296.19428827,0.000207,2]
[322026011,1712695838929,-296.19428827,0.000207,2]
[322026012,1712695838940,-296.19428827,0.000207,2]
[322026013,1712695838950,-296.19428827,0.000207,2]
[322026014,1712695838960,-296.19428827,0.000207,2]
[322026015,1712695838971,-296.19428827,0.000207,2]
[322026016,1712695838980,-296.19428827,0.000207,2]
[322026017,1712695838991,-296.19428827,0.000207,2]
[322026018,1712695839002,-296.19428827,0.000207,2]
[322026019,1712695839013,-296.19428827,0.000207,2]
[322026020,1712695839023,-296.19428827,0.000207,2]
[322026021,1712695839034,-296.19428827,0.000207,2]
[322026022,1712695839044,-296.19428827,0.000207,2]
[322026023,1712695839058,-296.19428827,0.000207,2]
[322026024,1712695839071,-296.19428827,0.000207,2]
[322026025,1712695839081,-296.19428827,0.000207,2]
[322026026,1712695839092,-296.19428827,0.000207,2]
[322026027,1712695839101,-296.19428827,0.000207,2]
[322026028,1712695839111,-296.19428827,0.000207,2]
[322026029,1712695839120,-296.19428827,0.000207,2]
[322026030,1712695839129,-296.19428827,0.000207,2]
[322026031,1712695839138,-296.19428827,0.000207,2]
[322026032,1712695839148,-296.19428827,0.000207,2]
[322026033,1712695839157,-296.19428827,0.000207,2]
[322026034,1712695839166,-296.19428827,0.000207,2]
[322026035,1712695839175,-296.19428827,0.000207,2]
[322026036,1712695839184,-296.19428827,0.000207,2]
[322026037,1712695839194,-296.19428827,0.000207,2]
[322026038,1712695839203,-296.19428827,0.000207,2]
[322026039,1712695839211,-296.19428827,0.000207,2]
[322026040,1712695839220,-296.19428827,0.000207,2]
[322026041,1712695839230,-296.19428827,0.000207,2]
[322026042,1712695839238,-296.19428827,0.000207,2]
[322026043,1712695839247,-296.19428827,0.000207,2]
[322026044,1712695839256,-296.19428827,0.000207,2]
[322026045,1712695839265,-296.19428827,0.000207,2]
[322026046,1712695839274,-296.19428827,0.000207,2]
[322026047,1712695839283,-296.19428827,0.000207,2]
[322026048,1712695839293,-296.19428827,0.000207,2]
[322026049,1712695839301,-296.19428827,0.000207,2]
[322026050,1712695839310,-296.19428827,0.000207,2]
[322026051,1712695839319,-296.19428827,0.000207,2]
[322026052,1712695839328,-296.19428827,0.000207,2]
[322026053,1712695839337,-296.19428827,0.000207,2]
[322026054,1712695839345,-296.19428827,0.000207,2]
[322026055,1712695839354,-296.19428827,0.000207,2]
[322026056,1712695839363,-296.19428827,0.000207,2]
[322026057,1712695839372,-296.19428827,0.000207,2]
[322026058,1712695839381,-296.19428827,0.000207,2]
[322026059,1712695839390,-296.19428827,0.000207,2]
[322026060,1712695839399,-296.19428827,0.000207,2]
[322026061,1712695839408,-296.19428827,0.000207,2]
[322026062,1712695839417,-296.19428827,0.000207,2]
[322026063,1712695839426,-296.19428827,0.000207,2]
[322026064,1712695839435,-296.19428827,0.000207,2]
[322026065,1712695839444,-296.19428827,0.000207,2]
[322026066,1712695839453,-296.19428827,0.000207,2]
[322026067,1712695839463,-296.19428827,0.000207,2]
[322026068,1712695839472,-296.19428827,0.000207,2]
[322026069,1712695839481,-296.19428827,0.000207,2]
[322026070,1712695839490,-285.43035741,0.000207,2]
[322026071,1712695839504,-10.76393086,0.000207,2]
[322026072,1712695839513,-296.19428827,0.000207,2]
[322026073,1712695839522,-296.19428827,0.000207,2]
[322026074,1712695839531,-35.6824126,0.000207,2]
[322026075,1712695839542,-260.51187567,0.000207,2]
[322026076,1712695839551,-430.49812433,0.00020711,2]
[322026077,1712695839562,-443.61887567,0.00020711,2]
[322026078,1712695839571,-150.0,0.00020711,2]
[322026079,1712695839581,-529.459,0.00020711,2]
[322026080,1712695839590,-150.0,0.00020711,2]
[322026081,1712695839600,-254.57220545,0.00020717,2]
[322026082,1712695839609,-166.69515823,0.00020721,2]
[322026083,1712695839618,-834.69,0.00020741,2]
[322026084,1712695839627,-184.51508928,0.00020777,2]
[322026085,1712695839636,-500.0,0.00020778,2]
[322026086,1712695839645,-500.0,0.00020778,2]
[322026087,1712695839654,-500.0,0.00020778,2]
[322026088,1712695839663,-1425.56,0.00020778,2]
[322026089,1712695839673,-500.0,0.00020778,2]
[322026090,1712695839682,-599.82,0.00020778,2]
[322026091,1712695839691,-500.0,0.00020778,2]
[322026092,1712695839701,-500.0,0.00020778,2]
[322026093,1712695839710,-890.45,0.00020778,2]
[322026094,1712695839719,-500.0,0.00020778,2]
[322026095,1712695839728,-500.0,0.00020778,2]
[322026096,1712695839737,-500.0,0.00020778,2]
[322026097,1712695839746,-500.0,0.00020778,2]
[322026098,1712695839755,-1296.44,0.00020778,2]
[322026099,1712695839764,-500.0,0.00020778,2]
[322026100,1712695839773,-297.29902466,0.00020788,2]
[322026101,1712695839782,-155.37066366,0.00020788,2]
[322026102,1712695839792,-336.19067971,0.00020788,2]
[322026103,1712695839801,-171.49246682,0.0002079,2]
[322026104,1712695839810,-1628.983199,0.000208,2]
[322026105,1712695839819,-2443.474799,0.000208,2]
[322026106,1712695839828,-3257.966399,0.000208,2]
[322026107,1712695839837,-4072.457998,0.000208,2]
[322026108,1712695839846,-5701.441198,0.000208,2]
[322026109,1712695839855,-1000.0,0.000208,2]
[322026110,1712695839864,-500.0,0.0002082,2]
[322026111,1712695839873,-1061.96,0.0002082,2]
[322026112,1712695839882,-2528.95,0.0002082,2]
[322026113,1712695839892,-500.0,0.0002082,2]
[322026114,1712695839900,-500.0,0.0002082,2]
[322026115,1712695839910,-746.05,0.0002082,2]
[322026116,1712695839919,-613.41,0.00020821,2]
[322026117,1712695839928,-684.32,0.00020821,2]
[322026118,1712695839937,-2433.52,0.00020821,2]
[322026119,1712695839946,-500.0,0.00020821,2]
[322026120,1712695839956,-2027.77,0.00020821,2]
[322026121,1712695839967,-500.0,0.00020821,2]
[322026122,1712695839977,-500.0,0.00020831,2]
[322026123,1712695839988,-200.0,0.00020832,2]
[322026124,1712695839998,-1000.0,0.00020832,2]
[322026125,1712695840008,-200.0,0.00020832,2]
[322026126,1712695840018,-500.0,0.00020832,2]
[322026127,1712695840028,-200.0,0.00020832,2]
[322026128,1712695840039,-11236.61976296,0.00020842,2]
[322026129,1712695840049,-314.041005,0.00020868,2]
[322026130,1712695840058,-314.041005,0.00020868,2]
[322026131,1712695840072,-314.041005,0.00020868,2]
[322026132,1712695840081,-314.041005,0.00020868,2]
[322026133,1712695840091,-314.041005,0.00020868,3]
[322026134,1712695840101,-314.041005,0.00020868,3]
[322026135,1712695840113,-314.041005,0.00020868,3]
[322026136,1712695840123,-314.041005,0.00020868,3]
[322026137,1712695840132,-314.041005,0.00020868,2]
[322026138,1712695840144,-1458.78,0.00020876,2]
[322026139,1712695840153,-500.0,0.00020876,2]
[322026140,1712695840163,-635.39,0.00020876,2]
[322026141,1712695840174,-500.0,0.00020876,2]
[322026142,1712695840184,-500.0,0.00020876,2]
[322026143,1712695840195,-500.0,0.00020876,2]
[322026144,1712695840205,-500.0,0.00020876,2]
[322026145,1712695840215,-539.48,0.00020876,2]
[322026146,1712695840225,-500.0,0.00020876,2]
[322026147,1712695840234,-704.24,0.00020876,2]
[322026148,1712695840243,-3092.81,0.00020876,2]
[322026149,1712695840253,-500.0,0.00020876,2]
[322026150,1712695840263,-476.61,0.00020877,2]
[322026151,1712695840273,-500.0,0.00020877,2]
[322026152,1712695840283,-500.0,0.00020877,2]
[322026153,1712695840293,-500.0,0.00020877,2]
[322026154,1712695840304,-500.0,0.00020877,2]
[322026155,1712695840313,-500.0,0.00020877,2]
[322026156,1712695840323,-500.0,0.00020877,2]
[322026157,1712695840334,-976.18,0.00020877,2]
[322026158,1712695840343,-500.0,0.00020877,2]
[322026159,1712695840353,-500.0,0.00020877,2]
[322026160,1712695840363,-500.0,0.00020877,2]
[322026161,1712695840373,-500.0,0.00020877,2]
[322026162,1712695840384,-705.31,0.00020877,2]
[322026163,1712695840394,-500.0,0.00020877,2]
[322026164,1712695840403,-626.04,0.00020877,2]
[322026165,1712695840413,-584.0,0.00020877,2]
[322026166,1712695840422,-500.0,0.00020877,2]
[322026167,1712695840433,-286.9858166,0.00020877,2]
[322026168,1712695840442,-314.041005,0.00020878,2]
[322026169,1712695840452,-314.041005,0.00020878,2]
[322026170,1712695840461,-314.041005,0.00020878,2]
[322026171,1712695840471,-314.041005,0.00020878,2]
[322026172,1712695840480,-314.041005,0.00020878,2]
[322026173,1712695840491,-314.041005,0.00020878,3]
[322026174,1712695840503,-314.041005,0.00020878,3]
[322026175,1712695840514,-314.041005,0.00020878,3]
[322026176,1712695840523,-314.041005,0.00020888,2]
[322026177,1712695840534,-314.041005,0.00020888,2]
[322026178,1712695840544,-314.041005,0.00020888,2]
[322026179,1712695840554,-314.041005,0.00020888,2]
[322026180,1712695840567,-314.041005,0.00020888,3]
[322026181,1712695840578,-314.041005,0.00020888,3]
[322026182,1712695840589,-314.041005,0.00020888,3]
[322026183,1712695840599,-314.041005,0.00020898,2]
[322026184,1712695840609,-314.041005,0.00020898,2]
[322026185,1712695840619,-314.041005,0.00020898,2]
[322026186,1712695840631,-314.041005,0.00020898,2]
[322026187,1712695840643,-314.041005,0.00020898,2]
[322026188,1712695840653,-314.041005,0.00020898,3]
[322026189,1712695840662,-314.041005,0.00020898,3]
[322026190,1712695840673,-38385.4728,0.000209,2]
[322026191,1712695840683,-17500.0,0.000209,2]
[322026192,1712695840694,-1000.0,0.000209,2]
[322026193,1712695840704,-10000.0,0.000209,2]
[322026194,1712695840714,-172.6210039,0.000209,2]
[322026195,1712695840723,-153.40766547,0.000209,2]
[322026196,1712695840733,-2183.58197056,0.000209,2]
[322026197,1712695840743,-1145.80866043,0.000209,3]
[322026198,1712695840753,-1175.82887662,0.000209,2]
[322026199,1712695840763,-6185.17070436,0.000209,2]
[322026200,1712695840773,-3901.12711582,0.000209,2]
[322026201,1712695840784,-187.52025476,0.000209,2]
[322026202,1712695840793,-167.53974831,0.000209,2]
[322026203,1712695840804,-1034.39321,0.0002092,2]
[322026204,1712695840813,-150.0,0.00020954,2]
[322026205,1712695840823,-3547.023,0.00020954,2]
[322026206,1712695840833,-254.57220545,0.0002097,2]
[322026207,1712695840843,-8271.04258511,0.00020977,4]
[322026208,1712695840852,-314.041005,0.00020979,2]
[322026209,1712695840862,-314.041005,0.00020979,2]
[322026210,1712695840873,-314.041005,0.00020979,2]
[322026211,1712695840885,-314.041005,0.00020979,2]
[322026212,1712695840900,-314.041005,0.00020979,2]
[322026213,1712695840914,-314.041005,0.00020979,3]
[322026214,1712695840926,-314.041005,0.00020979,3]
[322026215,1712695840938,-314.041005,0.00020979,3]
[322026216,1712695840949,-1175.82887659,0.00020979,2]
[322026217,1712695840963,-570.59194654,0.00020988,2]
[322026218,1712695840976,-314.041005,0.00020988,2]
[322026219,1712695840986,-314.041005,0.00020988,2]
[322026220,1712695840997,-314.041005,0.00020988,2]
[322026221,1712695841010,-314.041005,0.00020988,2]
[322026222,1712695841023,-314.041005,0.00020988,3]
[322026223,1712695841034,-314.041005,0.00020988,3]
[322026224,1712695841045,-314.041005,0.00020988,3]
[322026225,1712695841057,-314.041005,0.00020989,2]
[322026226,1712695841072,-314.041005,0.00020989,2]
[322026227,1712695841082,-314.041005,0.00020989,2]
[322026228,1712695841093,-314.041005,0.00020989,2]
[322026229,1712695841104,-314.041005,0.00020989,2]
[322026230,1712695841114,-314.041005,0.00020989,3]
[322026231,1712695841125,-314.041005,0.00020989,3]
[322026232,1712695841135,-314.041005,0.00020989,3]
[322026233,1712695841147,-342.16157541,0.00020998,2]
[322026234,1712695841160,-703.66801743,0.00020998,2]
[322026235,1712695841170,-155.0,0.00020998,2]
[322026236,1712695841180,-5357.36156544,0.00020998,2]
[322026237,1712695841192,-362.27924693,0.00020998,2]
[322026238,1712695841202,-6389.74782867,0.00020998,2]
[322026239,1712695841212,-155.0,0.00020998,2]
[322026240,1712695841226,-155.39379797,0.00020998,2]
[322026241,1712695841235,-156.34656449,0.00020998,2]
[322026242,1712695841245,-169.12911613,0.00020998,2]
[322026243,1712695841256,-201.70970814,0.00020998,2]
[322026244,1712695841266,-588.3974062,0.00020998,2]
[322026245,1712695841277,-155.0,0.00020998,2]
[322026246,1712695841287,-155.624877,0.00020998,2]
[322026247,1712695841297,-175.43329082,0.00020998,2]
[322026248,1712695841307,-500.0,0.00020998,2]
[322026249,1712695841317,-156.80867088,0.00020998,3]
[322026250,1712695841328,-198.43466289,0.00020998,2]
[322026251,1712695841338,-155.8559771,0.00020998,2]
[322026252,1712695841347,-503.87779719,0.00020998,2]
[322026253,1712695841356,-155.0,0.00020998,2]
[322026254,1712695841365,-155.0,0.00020998,2]
[322026255,1712695841374,-6299.96928165,0.00020998,2]
[322026256,1712695841383,-1764.087237,0.00020998,2]
[322026257,1712695841392,-264.23544895,0.00020998,2]
[322026258,1712695841401,-160.91122999,0.00020998,2]
[322026259,1712695841410,-157.40175635,0.00020998,2]
[322026260,1712695841420,-155.0,0.00020998,2]
[322026261,1712695841429,-155.09101632,0.00020998,2]
[322026262,1712695841438,-314.041005,0.00020998,2]
[322026263,1712695841448,-314.041005,0.00020998,2]
[322026264,1712695841458,-314.041005,0.00020998,2]
[322026265,1712695841468,-314.041005,0.00020998,2]
[322026266,1712695841478,-314.041005,0.00020998,3]
[322026267,1712695841489,-314.041005,0.00020998,3]
[322026268,1712695841499,-314.041005,0.00020998,3]
[322026269,1712695841509,-540.83230062,0.00020999,2]
[322026270,1712695841519,-216.08179167,0.00020999,2]